fUSD/lending_fUSD_20240821
["ID","MTS","AMOUNT","RATE_DAILY","PERIOD"]
[335436998,1724232634602,-1000.0,0.00016356,2]
[335436999,1724232634614,-1000.0,0.00016356,2]
[335437000,1724232634627,-1000.0,0.00016356,2]
[335437001,1724232634640,-1000.0,0.00016356,2]
[335437002,1724232634652,-1000.0,0.00016356,2]
[335437003,1724232634663,-1000.0,0.00016356,2]
[335437004,1724232634675,-1000.0,0.00016356,2]
[335437005,1724232634687,-1000.0,0.00016356,2]
[335437006,1724232634700,-1000.0,0.00016356,2]
[335437007,1724232634712,-1000.0,0.00016356,2]
[335437008,1724232634725,-1000.0,0.00016356,2]
[335437009,1724232634739,-838.9948,0.00016356,2]
[335437010,1724232634751,-153.72023151,0.00016359,2]
[335437011,1724232634763,-496.0,0.000164,2]
[335437012,1724232634776,-150.0,0.000164,2]
[335437013,1724232634788,-2266.86735154,0.000164,2]
[335437014,1724232634799,-585.8,0.000164,2]
[335437015,1724232634812,-150.81,0.00016411,2]
[335437016,1724232634824,-150.81,0.00016421,2]
[335437017,1724232634838,-150.81,0.00016421,2]
[335437018,1724232634850,-387.256482,0.00016421,2]
[335437019,1724232634863,-387.256482,0.00016421,2]
[335437020,1724232634876,-387.256482,0.00016421,2]
[335437021,1724232634888,-387.256482,0.00016421,2]
[335437022,1724232634900,-181.239503,0.00016421,2]
[335437023,1724232634913,-181.239503,0.00016421,2]
[335437024,1724232634925,-181.239503,0.00016421,2]
[335437025,1724232634937,-181.239503,0.00016421,2]
[335437026,1724232634950,-151.0,0.00016421,2]
[335437027,1724232634963,-151.0,0.00016421,2]
[335437028,1724232634976,-372.538934,0.00016421,2]
[335437029,1724232634988,-372.538934,0.00016421,2]
[335437030,1724232635001,-332.059712,0.00016421,2]
[335437031,1724232635014,-332.059712,0.00016421,2]
[335437032,1724232635025,-372.538934,0.00016421,2]
[335437033,1724232635037,-372.538934,0.00016421,2]
[335437034,1724232635050,-332.059712,0.00016421,2]
[335437035,1724232635062,-332.059712,0.00016421,2]
[335437036,1724232635074,-151.0,0.00016421,2]
[335437037,1724232635087,-151.0,0.00016421,2]
[335437038,1724232635100,-151.0,0.00016421,2]
[335437039,1724232635112,-151.0,0.00016421,2]
[335437040,1724232635124,-158.798286,0.00016421,2]
[335437041,1724232635136,-158.798286,0.00016421,2]
[335437042,1724232635148,-158.798286,0.00016421,2]
[335437043,1724232635161,-158.798286,0.00016421,2]
[335437044,1724232635172,-151.0,0.00016421,2]
[335437045,1724232635185,-151.0,0.00016421,2]
[335437046,1724232635196,-261.155796,0.00016421,2]
[335437047,1724232635207,-1009.773379,0.00016421,2]
[335437048,1724232635219,-1009.773379,0.00016421,2]
[335437049,1724232635231,-1009.773379,0.00016421,2]
[335437050,1724232635243,-1009.773379,0.00016421,2]
[335437051,1724232635256,-151.0,0.00016421,2]
[335437052,1724232635268,-151.0,0.00016421,2]
[335437053,1724232635280,-287.720757,0.00016421,2]
[335437054,1724232635292,-287.720757,0.00016421,2]
[335437055,1724232635304,-151.0,0.00016421,2]
[335437056,1724232635316,-151.0,0.00016421,2]
[335437057,1724232635330,-287.720757,0.00016421,2]
[335437058,1724232635343,-287.720757,0.00016421,2]
[335437059,1724232635356,-151.0,0.00016421,2]
[335437060,1724232635368,-151.0,0.00016421,2]
[335437061,1724232635381,-151.0,0.00016421,2]
[335437062,1724232635393,-151.0,0.00016421,2]
[335437063,1724232635407,-225.710633,0.00016421,2]
[335437064,1724232635419,-151.0,0.00016421,2]
[335437065,1724232635431,-151.0,0.00016421,2]
[335437066,1724232635443,-151.0,0.00016421,2]
[335437067,1724232635455,-151.0,0.00016421,2]
[335437068,1724232635467,-151.0,0.00016421,2]
[335437069,1724232635478,-151.0,0.00016421,2]
[335437070,1724232635490,-937.710506,0.00016421,2]
[335437071,1724232635502,-937.710506,0.00016421,2]
[335437072,1724232635514,-937.710506,0.00016421,2]
[335437073,1724232635527,-937.710506,0.00016421,2]
[335437074,1724232635539,-160.859143,0.00016421,2]
[335437075,1724232635548,-160.859143,0.00016421,2]
[335437076,1724232635557,-160.859143,0.00016421,2]
[335437077,1724232635567,-160.859143,0.00016421,2]
[335437078,1724232635763,-151.0,0.00016428,2]
[335437079,1724232635775,-151.0,0.00016428,2]
[335437080,1724232635785,-151.0,0.00016428,2]
[335437081,1724232635793,-151.0,0.00016428,2]
[335437082,1724232635803,-151.0,0.00016428,2]
[335437083,1724232635812,-151.0,0.00016428,2]
[335437084,1724232635821,-174.037561,0.00016428,2]
[335437085,1724232635830,-174.037561,0.00016428,2]
[335437086,1724232635839,-174.037561,0.00016428,2]
[335437087,1724232635848,-174.037561,0.00016428,2]
[335437088,1724232635858,-151.0,0.00016428,2]
[335437089,1724232635867,-151.0,0.00016428,2]
[335437090,1724232635876,-522.607082,0.00016428,2]
[335437091,1724232635886,-522.607082,0.00016428,2]
[335437092,1724232635894,-522.607082,0.00016428,2]
[335437093,1724232635904,-522.607082,0.00016428,2]
[335437094,1724232635913,-418.771925,0.00016428,2]
[335437095,1724232635922,-418.771925,0.00016428,2]
[335437096,1724232635932,-370.686585,0.00016428,2]
[335437097,1724232635941,-370.686585,0.00016428,2]
[335437098,1724232635951,-151.0,0.00016428,2]
[335437099,1724232635961,-187.12276,0.00016428,2]
[335437100,1724232635972,-387.256482,0.00016428,2]
[335437101,1724232635982,-387.256482,0.00016428,2]
[335437102,1724232635992,-181.239503,0.00016428,2]
[335437103,1724232636004,-181.239503,0.00016428,2]
[335437104,1724232636015,-151.0,0.00016428,2]
[335437105,1724232636026,-372.538934,0.00016428,2]
[335437106,1724232636036,-332.059712,0.00016428,2]
[335437107,1724232636046,-372.538934,0.00016428,2]
[335437108,1724232636055,-332.059712,0.00016428,2]
[335437109,1724232636064,-151.0,0.00016428,2]
[335437110,1724232636074,-151.0,0.00016428,2]
[335437111,1724232636084,-158.798286,0.00016428,2]
[335437112,1724232636095,-155.559711,0.00016428,2]
[335437113,1724232636104,-158.798286,0.00016428,2]
[335437114,1724232636113,-151.0,0.00016428,2]
[335437115,1724232636123,-1009.773379,0.00016428,2]
[335437116,1724232636132,-1009.773379,0.00016428,2]
[335437117,1724232636141,-151.0,0.00016428,2]
[335437118,1724232636150,-287.720757,0.00016428,2]
[335437119,1724232636160,-151.0,0.00016428,2]
[335437120,1724232636169,-287.720757,0.00016428,2]
[335437121,1724232636179,-151.0,0.00016428,2]
[335437122,1724232636188,-151.0,0.00016428,2]
[335437123,1724232636197,-151.0,0.00016428,2]
[335437124,1724232636207,-151.0,0.00016428,2]
[335437125,1724232636216,-151.0,0.00016428,2]
[335437126,1724232636225,-937.710506,0.00016428,2]
[335437127,1724232636234,-937.710506,0.00016428,2]
[335437128,1724232636243,-262.413089,0.00016428,2]
[335437129,1724232636253,-160.859143,0.00016428,2]
[335437130,1724232636263,-160.859143,0.00016428,2]
[335437131,1724232636272,-151.0,0.00016428,2]
[335437132,1724232636281,-151.0,0.00016428,2]
[335437133,1724232636290,-156.571307,0.00016428,2]
[335437134,1724232636299,-156.571307,0.00016428,2]
[335437135,1724232636309,-1333.451265,0.00016428,2]
[335437136,1724232636318,-1333.451265,0.00016428,2]
[335437137,1724232636329,-286.273329,0.00016428,2]
[335437138,1724232636340,-286.273329,0.00016428,2]
[335437139,1724232636349,-582.0,0.00016431,2]
[335437140,1724232636358,-151.0,0.00016431,2]
[335437141,1724232636369,-151.0,0.00016431,2]
[335437142,1724232636378,-151.0,0.00016431,2]
[335437143,1724232636387,-151.0,0.00016431,2]
[335437144,1724232636396,-151.0,0.00016431,2]
[335437145,1724232636408,-151.0,0.00016431,2]
[335437146,1724232636418,-189.53171,0.00016431,2]
[335437147,1724232636428,-188.665838,0.00016431,2]
[335437148,1724232636437,-457.365995,0.00016431,2]
[335437149,1724232636447,-457.365995,0.00016431,2]
[335437150,1724232636457,-155.846591,0.00016431,2]
[335437151,1724232636466,-155.846591,0.00016431,2]
[335437152,1724232636475,-151.0,0.00016431,2]
[335437153,1724232636484,-418.771925,0.00016431,2]
[335437154,1724232636493,-418.771925,0.00016431,2]
[335437155,1724232636503,-26604.1533079,0.00016431,2]
[335437156,1724232636512,-370.686585,0.00016431,2]
[335437157,1724232636521,-370.686585,0.00016431,2]
[335437158,1724232636530,-3801.7265831,0.00016431,2]
[335437159,1724232636540,-151.0,0.00016431,2]
[335437160,1724232636549,-387.256482,0.00016431,2]
[335437161,1724232636558,-387.256482,0.00016431,2]
[335437162,1724232636567,-71643.5902236,0.00016431,2]
[335437163,1724232636576,-8639.7634837,0.00016431,2]
[335437164,1724232636586,-181.239503,0.00016431,2]
[335437165,1724232636598,-181.239503,0.00016431,2]
[335437166,1724232636607,-151.0,0.00016431,2]
[335437167,1724232636616,-372.538934,0.00016431,2]
[335437168,1724232636625,-332.059712,0.00016431,2]
[335437169,1724232636635,-332.059712,0.00016431,2]
[335437170,1724232636644,-372.538934,0.00016431,2]
[335437171,1724232636653,-332.059712,0.00016431,2]
[335437172,1724232636662,-332.059712,0.00016431,2]
[335437173,1724232636671,-151.0,0.00016431,2]
[335437174,1724232636680,-151.0,0.00016431,2]
[335437175,1724232636690,-273.915815,0.00016431,2]
[335437176,1724232636699,-9001.3168402,0.00016431,2]
[335437177,1724232636708,-158.798286,0.00016431,2]
[335437178,1724232636719,-158.798286,0.00016431,2]
[335437179,1724232636729,-158.798286,0.00016431,2]
[335437180,1724232636739,-158.798286,0.00016431,2]
[335437181,1724232636748,-151.0,0.00016431,2]
[335437182,1724232636757,-151.0,0.00016431,2]
[335437183,1724232636767,-1009.773379,0.00016431,2]
[335437184,1724232636776,-1009.773379,0.00016431,2]
[335437185,1724232636786,-1009.773379,0.00016431,2]
[335437186,1724232636795,-1009.773379,0.00016431,2]
[335437187,1724232636804,-151.0,0.00016431,2]
[335437188,1724232636813,-151.0,0.00016431,2]
[335437189,1724232636824,-287.720757,0.00016431,2]
[335437190,1724232636834,-287.720757,0.00016431,2]
[335437191,1724232636845,-151.0,0.00016431,2]
[335437192,1724232636854,-287.720757,0.00016431,2]
[335437193,1724232636863,-167.22835,0.00016431,2]
[335437194,1724232636873,-287.720757,0.00016431,2]
[335437195,1724232636883,-151.0,0.00016431,2]
[335437196,1724232636892,-165.768488,0.00016431,2]
[335437197,1724232636901,-44073.2100325,0.00016431,2]
[335437198,1724232636911,-151.0,0.00016431,2]
[335437199,1724232636920,-151.0,0.00016431,2]
[335437200,1724232636928,-151.0,0.00016431,2]
[335437201,1724232636937,-151.0,0.00016431,2]
[335437202,1724232636953,-151.0,0.00016431,2]
[335437203,1724232636966,-231.249488,0.00016431,2]
[335437204,1724232636975,-182.665996,0.00016431,2]
[335437205,1724232636985,-5003.2287597,0.00016431,2]
[335437206,1724232636994,-937.710506,0.00016431,2]
[335437207,1724232637003,-937.710506,0.00016431,2]
[335437208,1724232637013,-160.859143,0.00016431,2]
[335437209,1724232637022,-160.859143,0.00016431,2]
[335437210,1724232637032,-151.0,0.00016431,2]
[335437211,1724232637041,-151.0,0.00016431,2]
[335437212,1724232637051,-151.0,0.00016431,2]
[335437213,1724232637061,-151.0,0.00016431,2]
[335437214,1724232637071,-156.571307,0.00016431,2]
[335437215,1724232637080,-156.571307,0.00016431,2]
[335437216,1724232637091,-156.571307,0.00016431,2]
[335437217,1724232637100,-156.571307,0.00016431,2]
[335437218,1724232637110,-1333.451265,0.00016431,2]
[335437219,1724232637120,-1333.451265,0.00016431,2]
[335437220,1724232637129,-1333.451265,0.00016431,2]
[335437221,1724232637140,-1333.451265,0.00016431,2]
[335437222,1724232637150,-286.273329,0.00016431,2]
[335437223,1724232637159,-286.273329,0.00016431,2]
[335437224,1724232637169,-286.273329,0.00016431,2]
[335437225,1724232637179,-286.273329,0.00016431,2]
[335437226,1724232637188,-174.037561,0.00016432,2]
[335437227,1724232637198,-174.037561,0.00016432,2]
[335437228,1724232637207,-151.0,0.00016432,2]
[335437229,1724232637216,-151.0,0.00016432,2]
[335437230,1724232637227,-151.0,0.00016432,2]
[335437231,1724232637237,-522.607082,0.00016432,2]
[335437232,1724232637247,-522.607082,0.00016432,2]
[335437233,1724232637259,-151.0,0.00016432,2]
[335437234,1724232637268,-151.0,0.00016432,2]
[335437235,1724232637281,-151.0,0.00016432,2]
[335437236,1724232637292,-151.0,0.00016432,2]
[335437237,1724232637301,-457.365995,0.00016432,2]
[335437238,1724232637311,-457.365995,0.00016432,2]
[335437239,1724232637323,-155.846591,0.00016432,2]
[335437240,1724232637337,-155.846591,0.00016432,2]
[335437241,1724232637349,-151.0,0.00016432,2]
[335437242,1724232637358,-418.771925,0.00016432,2]
[335437243,1724232637368,-418.771925,0.00016432,2]
[335437244,1724232637377,-370.686585,0.00016432,2]
[335437245,1724232637386,-370.686585,0.00016432,2]
[335437246,1724232637397,-937.710506,0.00016432,2]
[335437247,1724232637410,-937.710506,0.00016432,2]
[335437248,1724232637420,-160.859143,0.00016432,2]
[335437249,1724232637429,-160.859143,0.00016432,2]
[335437250,1724232637439,-387.256482,0.00016435,2]
[335437251,1724232637450,-387.256482,0.00016435,2]
[335437252,1724232637459,-181.239503,0.00016435,2]
[335437253,1724232637468,-181.239503,0.00016435,2]
[335437254,1724232637477,-372.538934,0.00016435,2]
[335437255,1724232637487,-372.538934,0.00016435,2]
[335437256,1724232637496,-18142.60789119,0.00016435,2]
[335437257,1724232637506,-6047.53596373,0.00016436,2]
[335437258,1724232637515,-151.0,0.00016436,2]
[335437259,1724232637526,-218.40329671,0.00016437,2]
[335437260,1724232637536,-1478.86572038,0.00016437,2]
[335437261,1724232637545,-791755.24761396,0.00016438,2]
[335437262,1724232637556,-31777.38051772,0.00016438,2]
[335437263,1724232637567,-41327.595997,0.00016438,2]
[335437264,1724232637576,-640.483974,0.00016438,2]
[335437265,1724232637586,-540.077734,0.00016438,2]
[335437266,1724232637597,-640.483974,0.00016438,2]
[335437267,1724232637607,-540.077734,0.00016438,2]
[335437268,1724232637617,-640.483974,0.00016438,2]
[335437269,1724232637627,-540.077734,0.00016438,2]
[335437270,1724232637637,-540.077734,0.00016438,2]
[335437271,1724232637647,-540.077734,0.00016438,2]
[335437272,1724232637657,-640.483974,0.00016438,2]
[335437273,1724232637667,-640.483974,0.00016438,2]
[335437274,1724232637677,-22006.158226,0.00016438,2]
[335437275,1724232637686,-22006.158226,0.00016438,2]
[335437276,1724232637696,-22006.158226,0.00016438,2]
[335437277,1724232637706,-22006.158226,0.00016438,2]
[335437278,1724232637715,-22006.158226,0.00016438,2]
[335437279,1724232637725,-12980.323097,0.00016438,2]
[335437280,1724232637735,-12980.323097,0.00016438,2]
[335437281,1724232637745,-12980.323097,0.00016438,2]
[335437282,1724232637755,-12980.323097,0.00016438,2]
[335437283,1724232637765,-12980.323097,0.00016438,2]
[335437284,1724232637775,-183.857505,0.00016438,2]
[335437285,1724232637785,-183.857505,0.00016438,2]
[335437286,1724232637794,-501.52613337,0.00016438,2]
[335437287,1724232637804,-500.0,0.00016438,2]
[335437288,1724232637813,-507.24334128,0.00016438,2]
[335437289,1724232637823,-500.0,0.00016438,2]
[335437290,1724232637833,-500.0,0.00016438,2]
[335437291,1724232637842,-200.40134662,0.00016438,2]
[335437292,1724232637851,-151.0,0.00016438,2]
[335437293,1724232637861,-151.0,0.00016438,2]
[335437294,1724232637870,-522.70240572,0.00016438,2]
[335437295,1724232637880,-500.0,0.00016438,2]
[335437296,1724232637890,-500.0,0.00016438,2]
[335437297,1724232637899,-500.0,0.00016438,2]
[335437298,1724232637909,-500.0,0.00016438,2]
[335437299,1724232637918,-500.0,0.00016438,2]
[335437301,1724232637928,-500.0,0.00016438,2]
[335437302,1724232637938,-500.0,0.00016438,2]
[335437303,1724232637948,-500.0,0.00016438,2]
[335437304,1724232637957,-500.0,0.00016438,2]
[335437305,1724232637967,-500.0,0.00016438,2]
[335437306,1724232637977,-500.0,0.00016438,2]
[335437307,1724232637986,-500.0,0.00016438,2]
[335437308,1724232637996,-500.0,0.00016438,2]
[335437309,1724232638006,-500.0,0.00016438,2]
[335437310,1724232638015,-500.0,0.00016438,2]
[335437311,1724232638025,-500.0,0.00016438,2]
[335437312,1724232638035,-506.97561447,0.00016438,2]
[335437313,1724232638045,-500.0,0.00016438,2]
[335437314,1724232638055,-500.0,0.00016438,2]
[335437315,1724232638064,-513.87625343,0.00016438,2]
[335437316,1724232638074,-500.0,0.00016438,2]
[335437317,1724232638084,-511.98096945,0.00016438,2]
[335437318,1724232638094,-500.0,0.00016438,2]
[335437319,1724232638104,-507.60018774,0.00016438,2]
[335437320,1724232638113,-528.80909973,0.00016438,2]
[335437321,1724232638122,-500.0,0.00016438,2]
[335437322,1724232638132,-500.0,0.00016438,2]
[335437323,1724232638142,-500.0,0.00016438,2]
[335437324,1724232638151,-520.09683306,0.00016438,2]
[335437325,1724232638160,-500.0,0.00016438,2]
[335437326,1724232638170,-500.0,0.00016438,2]
[335437327,1724232638179,-500.0,0.00016438,2]
[335437328,1724232638188,-548.35358025,0.00016438,2]
[335437329,1724232638197,-532.30824008,0.00016438,2]
[335437330,1724232638207,-500.0,0.00016438,2]
[335437331,1724232638216,-377.41654078,0.00016438,2]
[335437332,1724232638254,-122.58345922,0.00016438,2]
[335437333,1724232638264,-535.55826764,0.00016438,2]
[335437334,1724232638273,-525.88864014,0.00016438,2]
[335437335,1724232638282,-517.76167623,0.00016438,2]
[335437337,1724232638292,-500.0,0.00016438,2]
[335437339,1724232638302,-500.0,0.00016438,2]
[335437341,1724232638311,-500.0,0.00016438,2]
[335437343,1724232638324,-500.0,0.00016438,2]
[335437345,1724232638334,-532.53515367,0.00016438,2]
[335437347,1724232638344,-500.0,0.00016438,2]
[335437349,1724232638363,-527.12444103,0.00016438,2]
[335437351,1724232638372,-500.0,0.00016438,2]
[335437353,1724232638382,-500.0,0.00016438,2]
[335437355,1724232638393,-500.0,0.00016438,2]
[335437357,1724232638403,-500.0,0.00016438,2]
[335437361,1724232638413,-500.0,0.00016438,2]
[335437363,1724232638423,-500.0,0.00016438,2]
[335437367,1724232638432,-627.77015583,0.00016438,2]
[335437369,1724232638441,-500.0,0.00016438,2]
[335437373,1724232638451,-244.83154065,0.00016438,2]
[335437376,1724232638460,-500.0,0.00016438,2]
[335437378,1724232638469,-500.0,0.00016438,2]
[335437380,1724232638479,-518.3062769,0.00016438,2]
[335437382,1724232638490,-500.0,0.00016438,2]
[335437384,1724232638500,-502.38230739,0.00016438,2]
[335437386,1724232638509,-500.0,0.00016438,2]
[335437388,1724232638519,-500.0,0.00016438,2]
[335437390,1724232638529,-530.9603271,0.00016438,2]
[335437392,1724232638538,-627.85408128,0.00016438,2]
[335437394,1724232638549,-500.0,0.00016438,2]
[335437396,1724232638558,-500.0,0.00016438,2]
[335437398,1724232638568,-525.47318538,0.00016438,2]
[335437400,1724232638577,-523.71901228,0.00016438,2]
[335437402,1724232638588,-557.86800872,0.00016438,2]
[335437404,1724232638598,-500.0,0.00016438,2]
[335437406,1724232638608,-500.0,0.00016438,2]
[335437408,1724232638617,-523.87511163,0.00016438,2]
[335437410,1724232638627,-500.0,0.00016438,2]
[335437412,1724232638636,-500.0,0.00016438,2]
[335437414,1724232638645,-566.45107615,0.00016438,2]
[335437416,1724232638654,-531.6654105,0.00016438,2]
[335437417,1724232638664,-500.0,0.00016438,2]
[335437419,1724232638674,-532.4932711,0.00016438,2]
[335437421,1724232638684,-500.0,0.00016438,2]
[335437423,1724232638693,-516.61195596,0.00016438,2]
[335437425,1724232638703,-522.58660928,0.00016438,2]
[335437426,1724232638712,-501.39371114,0.00016438,2]
[335437427,1724232638722,-552.39824926,0.00016438,2]
[335437428,1724232638732,-500.0,0.00016438,2]
[335437429,1724232638741,-521.55584684,0.00016438,2]
[335437430,1724232638891,-529.9793721,0.00016438,2]
[335437431,1724232638901,-500.0,0.00016438,2]
[335437432,1724232638911,-504.99172818,0.00016438,2]
[335437433,1724232638921,-536.87524553,0.00016438,2]
[335437434,1724232638931,-500.0,0.00016438,2]
[335437435,1724232638940,-500.0,0.00016438,2]
[335437436,1724232638950,-527.86443794,0.00016438,2]
[335437437,1724232638959,-500.0,0.00016438,2]
[335437438,1724232638970,-500.0,0.00016438,2]
[335437439,1724232638981,-500.0,0.00016438,2]
[335437440,1724232638991,-500.0,0.00016438,2]
[335437441,1724232639000,-500.0,0.00016438,2]
[335437442,1724232639010,-541.28570338,0.00016438,2]
[335437443,1724232639019,-505.32630108,0.00016438,2]
[335437444,1724232639029,-500.0,0.00016438,2]
[335437445,1724232639040,-500.0,0.00016438,2]
[335437446,1724232639050,-500.0,0.00016438,2]
[335437447,1724232639061,-500.0,0.00016438,2]
[335437448,1724232639070,-500.0,0.00016438,2]
[335437449,1724232639080,-500.0,0.00016438,2]
[335437450,1724232639092,-500.0,0.00016438,2]
[335437451,1724232639102,-500.0,0.00016438,2]
[335437452,1724232639111,-500.0,0.00016438,2]
[335437453,1724232639120,-500.0,0.00016438,2]
[335437454,1724232639130,-500.0,0.00016438,2]
[335437455,1724232639139,-500.0,0.00016438,2]
[335437456,1724232639151,-539.68246956,0.00016438,2]
[335437457,1724232639160,-500.0,0.00016438,2]
[335437458,1724232639170,-500.0,0.00016438,2]
[335437459,1724232639179,-500.0,0.00016438,2]
[335437460,1724232639189,-500.0,0.00016438,2]
[335437461,1724232639198,-500.0,0.00016438,2]
[335437462,1724232639208,-508.98950173,0.00016438,2]
[335437463,1724232639217,-500.0,0.00016438,2]
[335437464,1724232639226,-500.0,0.00016438,2]
[335437465,1724232639237,-500.0,0.00016438,2]
[335437466,1724232639246,-500.0,0.00016438,2]
[335437467,1724232639258,-500.0,0.00016438,2]
[335437468,1724232639267,-500.0,0.00016438,2]
[335437469,1724232639276,-560.23505973,0.00016438,2]
[335437470,1724232639285,-543.26475083,0.00016438,2]
[335437471,1724232639295,-500.0,0.00016438,2]
[335437472,1724232639304,-500.0,0.00016438,2]
[335437473,1724232639314,-500.0,0.00016438,2]
[335437474,1724232639325,-511.52312965,0.00016438,2]
[335437475,1724232639336,-500.0,0.00016438,2]
[335437476,1724232639346,-500.0,0.00016438,2]
[335437477,1724232639356,-500.0,0.00016438,2]
[335437478,1724232639366,-387.83345416,0.00016438,2]
[335437479,1724232639375,-500.0,0.00016438,2]
[335437480,1724232639386,-500.0,0.00016438,2]
[335437481,1724232639395,-528.74184947,0.00016438,2]
[335437482,1724232639407,-151.0,0.00016438,2]
[335437483,1724232639416,-151.0,0.00016438,2]
[335437484,1724232639425,-151.0,0.00016438,2]
[335437485,1724232639436,-509.09881379,0.00016438,2]
[335437486,1724232639446,-519.87994502,0.00016438,2]
[335437487,1724232639455,-528.77352444,0.00016438,2]
[335437488,1724232639465,-528.99788452,0.00016438,2]
[335437489,1724232639475,-500.0,0.00016438,2]
[335437490,1724232639485,-500.0,0.00016438,2]
[335437491,1724232639494,-551.71698855,0.00016438,2]
[335437492,1724232639505,-530.5297988,0.00016438,2]
[335437493,1724232639514,-500.0,0.00016438,2]
[335437494,1724232639524,-647.31296536,0.00016438,2]
[335437495,1724232639533,-500.0,0.00016438,2]
[335437496,1724232639544,-505.02150088,0.00016438,2]
[335437497,1724232639554,-500.0,0.00016438,2]
[335437498,1724232639563,-524.99861042,0.00016438,2]
[335437499,1724232639573,-195.13225898,0.00016438,2]
[335437500,1724232639582,-500.0,0.00016438,2]
[335437501,1724232639592,-500.0,0.00016438,2]
[335437502,1724232639602,-496.28828135,0.00016438,2]
[335437503,1724232639612,-500.0,0.00016438,2]
[335437504,1724232639622,-500.0,0.00016438,2]
[335437505,1724232639630,-500.0,0.00016438,2]
[335437506,1724232639640,-500.0,0.00016438,2]
[335437507,1724232639649,-535.6311433,0.00016438,2]
[335437508,1724232639659,-150.0,0.00016438,2]
[335437509,1724232639668,-156.8254586,0.00016438,2]
[335437510,1724232639679,-543.7564964,0.00016438,2]
[335437511,1724232639690,-500.0,0.00016438,2]
[335437512,1724232639699,-500.0,0.00016438,2]
[335437513,1724232639709,-520.12255243,0.00016438,2]
[335437514,1724232639718,-208.92103587,0.00016438,2]
[335437515,1724232639728,-500.0,0.00016438,2]
[335437516,1724232639738,-525.08661001,0.00016438,2]
[335437517,1724232639748,-543.20396417,0.00016438,2]
[335437518,1724232639758,-504.25829366,0.00016438,2]
[335437519,1724232639767,-534.47086945,0.00016438,2]
[335437520,1724232639777,-500.0,0.00016438,2]
[335437521,1724232639787,-500.0,0.00016438,2]
[335437522,1724232639796,-502.9037777,0.00016438,2]
[335437523,1724232639805,-5000.0,0.00016438,2]
[335437524,1724232639814,-500.0,0.00016438,2]
[335437525,1724232639823,-500.0,0.00016438,2]
[335437526,1724232639832,-2624.64447274,0.00016438,2]
[335437527,1724232639842,-500.0,0.00016438,2]
[335437528,1724232639852,-500.0,0.00016438,2]
[335437529,1724232639861,-150.5305581,0.00016438,2]
[335437530,1724232639870,-500.0,0.00016438,2]
[335437531,1724232639880,-500.0,0.00016438,2]
[335437532,1724232639888,-525.74500414,0.00016438,2]
[335437533,1724232639898,-500.0,0.00016438,2]
[335437534,1724232639908,-521.05386782,0.00016438,2]
[335437535,1724232639918,-500.0,0.00016438,2]
[335437537,1724232639928,-500.0,0.00016438,2]
[335437539,1724232639936,-512.16155379,0.00016438,2]
[335437540,1724232639945,-500.0,0.00016438,2]
[335437541,1724232639955,-500.0,0.00016438,2]
[335437542,1724232639964,-500.0,0.00016438,2]
[335437543,1724232639974,-468.60511337,0.00016438,2]
[335437545,1724232639983,-510.36617265,0.00016438,2]
[335437547,1724232639992,-511.62030633,0.00016438,2]
[335437549,1724232640001,-500.0,0.00016438,2]
[335437550,1724232640010,-500.0,0.00016438,2]
[335437551,1724232640020,-500.0,0.00016438,2]